[Event "XVI Memorial Lezcano Montalvo 2024"]
[Site "Gran Canaria"]
[Date "2024.03.25"]
[Round "3.10"]
[White "Marrero Rodriguez, Jorge"]
[Black "Garcia Blanco, Omar"]
[Result "1-0"]
[ECO "A32"]
[WhiteElo "2177"]
[BlackElo "2377"]
[Annotator "RC"]
[PlyCount "89"]
[EventDate "2024.03.23"]
[EventType "swiss"]
[EventCountry "ESP"]
[SourceTitle "playchess.com"]
[Source "ChessBase"]
[SourceQuality "1"]
[TimeControl "5400+30"]

1. d4 {[%emt 0:00:07]} d5 {[%emt 0:02:45]} 2. c4 {[%emt 0:00:22]} e6 {[%emt 0:00:05]} 3. Nf3 {[%emt 0:00:23]} c5 {[%emt 0:02:14]} 4. e3 {[%emt 0:06:56]} cxd4 {[%emt 0:00:13]} 5. Nxd4 {[%emt 0:05:16]} Nf6 {[%emt 0:10:39]} 6. Nc3 {[%emt 0:07:05]} a6 {[%emt 0:18:18]} 7. cxd5 {[%emt 0:07:11]} Nxd5 {[%emt 0:00:17]} 8. Bc4 {[%emt 0:05:55]} Nxc3 {[%emt 0:00:20]} 9. bxc3 {[%emt 0:00:06]} Qc7 {[%emt 0:06:36]} 10. Bb3 {[%emt 0:02:13]} Bd6 {[%emt 0:00:36]} 11. f4 {[%emt 0:10:55]} Nd7 {[%emt 0:14:26]} 12. O-O {[%emt 0:08:20]} Nc5 {[%emt 0:00:04]} 13. Bc2 {[%emt 0:04:44]} g6 {[%emt 0:09:05]} 14. Nf3 {[%emt 0:05:06]} Bd7 {[%emt 0:02:48]} 15. Ne5 {[%emt 0:04:59]} Bb5 {[%emt 0:03:13]} 16. c4 {[%emt 0:04:05]} Bxe5 {[%emt 0:00:35]} 17. fxe5 {[%emt 0:00:01]} Bxc4 {[%emt 0:03:43]} 18. Rf4 {[%emt 0:02:09]} Rd8 {[%emt 0:01:04]} 19. Qf3 {[%emt 0:01:14]} Bd3 {[%emt 0:00:23]} 20. Ba3 {[%emt 0:07:03]} Qxe5 {[%emt 0:04:43]} 21. Rc1 {[%emt 0:03:29]} O-O {[%emt 0:00:47]} 22. Bxd3 {[%emt 0:05:51]} Nxd3 {[%emt 0:00:10]} 23. Bxf8 {[%emt 0:00:16]} Rxf8 {[%emt 0:05:24]} 24. Re4 {[%emt 0:00:52]} Qd5 {[%emt 0:01:35]} 25. Rf1 {[%emt 0:01:37]} Qxa2 {[%emt 0:02:03]} 26. Rd4 {[%emt 0:00:33]} Nc5 {[%emt 0:00:45]} 27. Rd8 {[%emt 0:01:04]} e5 {[%emt 0:00:13]} 28. Qf6 {[%emt 0:03:02]} Qe6 {[%emt 0:00:59]} 29. Rxf8+ {[%emt 0:00:08]} Kxf8 {[%emt 0:00:03]} 30. Qh8+ {[%emt 0:00:16]} Ke7 {[%emt 0:00:06]} 31. Rd1 {[%emt 0:00:08]} Nd7 {[%emt 0:00:07]} 32. Qxh7 {[%emt 0:00:11]} Qg4 {[%emt 0:02:15]} 33. Rf1 {[%emt 0:00:32]} Nf6 {[%emt 0:00:24]} 34. Qh8 {[%emt 0:01:10]} Qg5 {[%emt 0:00:09]} 35. Kh1 {[%emt 0:01:29]} Ne4 {[%emt 0:01:36]} 36. Qc8 {[%emt 0:00:45]} Nd6 {[%emt 0:01:10]} 37. Qc5 {[%emt 0:00:46]} Qh5 {[%emt 0:01:59]} 38. Qc7+ {[%emt 0:01:55]} Ke6 {[%emt 0:00:07]} 39. Qd8 {[%emt 0:00:14]} f5 {[%emt 0:01:44]} 40. Qg8+ {[%emt 0:01:01]} Kf6 {[%emt 0:00:37]} 41. Qd8+ {[%emt 0:00:38]} Ke6 {[%emt 0:00:05]} 42. Qg8+ {[%emt 0:00:45]} Kf6 {[%emt 0:00:06]} 43. Qd5 {[%emt 0:00:29]} Ne4 {[%emt 0:00:23]} 44. Qxe4 {[%emt 0:00:07]} Qe2 {[%emt 0:00:09]} 45. Qh4+ {[%emt 0:00:22]} 1-0

[Event "XVI Memorial Lezcano Montalvo 2024"]
[Site "Gran Canaria"]
[Date "2024.03.25"]
[Round "3.11"]
[White "Fiorito, Francisco"]
[Black "Hernandez Leon, Sergio"]
[Result "1-0"]
[ECO "A07"]
[WhiteElo "2368"]
[BlackElo "2172"]
[Annotator "RC"]
[PlyCount "49"]
[EventDate "2024.03.23"]
[EventType "swiss"]
[EventCountry "ESP"]
[SourceTitle "playchess.com"]
[Source "ChessBase"]
[SourceQuality "1"]
[TimeControl "5400+30"]

1. Nf3 {[%emt 0:00:05]} d5 {[%emt 0:00:21]} 2. b3 {[%emt 0:00:08]} Nf6 {[%emt 0:00:37]} 3. Bb2 {[%emt 0:00:13]} Bf5 {[%emt 0:02:12]} 4. g3 {[%emt 0:00:07]} e6 {[%emt 0:00:22]} 5. Bg2 {[%emt 0:00:06]} Be7 {[%emt 0:00:24]} 6. O-O {[%emt 0:00:08]} h6 {[%emt 0:00:30]} 7. d3 {[%emt 0:00:04]} O-O {[%emt 0:00:34]} 8. Nbd2 {[%emt 0:00:06]} Bh7 {[%emt 0:00:58]} 9. Re1 {[%emt 0:00:45]} c6 {[%emt 0:02:10]} 10. e4 {[%emt 0:00:19]} a5 {[%emt 0:00:48]} 11. a3 {[%emt 0:00:46]} Nbd7 {[%emt 0:02:15]} 12. Qe2 {[%emt 0:00:54]} Qc7 {[%emt 0:09:37]} 13. a4 {[%emt 0:15:20]} dxe4 {[%emt 0:23:09]} 14. dxe4 {[%emt 0:00:39]} Nc5 {[%emt 0:00:40]} 15. Ne5 {[%emt 0:03:25]} Nfd7 {[%emt 0:04:26]} 16. Ng4 {[%emt 0:03:30]} Rfe8 {[%emt 0:09:37]} 17. Rad1 {[%emt 0:02:17]} e5 {[%emt 0:05:53]} 18. Ne3 {[%emt 0:03:22]} Ne6 {[%emt 0:05:16]} 19. Nf3 {[%emt 0:05:25]} Ng5 {[%emt 0:04:39]} 20. Nxg5 {[%emt 0:02:40]} Bxg5 {[%emt 0:00:07]} 21. Nc4 {[%emt 0:01:29]} Be7 {[%emt 0:03:40]} 22. Bh3 {[%emt 0:01:06]} Rad8 {[%emt 0:04:46]} 23. Bxd7 {[%emt 0:00:27]} Rxd7 {[%emt 0:00:05]} 24. Bxe5 {[%emt 0:00:04]} Qd8 {[%emt 0:00:18]} 25. Qg4 {[%emt 0:00:09]} 1-0

[Event "XVI Memorial Lezcano Montalvo 2024"]
[Site "Gran Canaria"]
[Date "2024.03.25"]
[Round "3.12"]
[White "Marrero Cardenes, Agustin"]
[Black "Larino Nieto, David"]
[Result "0-1"]
[ECO "E21"]
[WhiteElo "2093"]
[BlackElo "2365"]
[Annotator "RC"]
[PlyCount "94"]
[EventDate "2024.03.23"]
[EventType "swiss"]
[EventCountry "ESP"]
[SourceTitle "playchess.com"]
[Source "ChessBase"]
[SourceQuality "1"]
[TimeControl "5400+30"]

1. d4 {[%emt 0:00:03]} e6 {[%emt 0:06:41]} 2. Nf3 {[%emt 0:00:08]} b6 {[%emt 0:00:09]} 3. c4 {[%emt 0:00:10]} Bb7 {[%emt 0:00:18]} 4. Nc3 {[%emt 0:00:16]} Bb4 {[%emt 0:00:14]} 5. Bd2 {[%emt 0:00:50]} Nf6 {[%emt 0:00:08]} 6. Qc2 {[%emt 0:01:25]} O-O {[%emt 0:00:48]} 7. e3 {[%emt 0:01:14]} Bxc3 {[%emt 0:00:10]} 8. Bxc3 {[%emt 0:00:10]} Ne4 {[%emt 0:00:05]} 9. Bd3 {[%emt 0:00:56]} f5 {[%emt 0:00:03]} 10. O-O {[%emt 0:05:27]} Nxc3 {[%emt 0:00:51]} 11. bxc3 {[%emt 0:01:03]} Bxf3 {[%emt 0:01:09]} 12. gxf3 {[%emt 0:00:08]} Qh4 {[%emt 0:00:41]} 13. Kh1 {[%emt 0:01:20]} Qh5 {[%emt 0:00:29]} 14. Qe2 {[%emt 0:00:55]} f4 {[%emt 0:00:08]} 15. Rg1 {[%emt 0:02:00]} Rf6 {[%emt 0:01:16]} 16. Rg4 {[%emt 0:04:49]} Rh6 {[%emt 0:10:36]} 17. h4 {[%emt 0:00:35]} Nc6 {[%emt 0:00:07]} 18. Rag1 {[%emt 0:08:05]} Kh8 {[%emt 1:15:37]} 19. R1g2 {[%emt 0:08:02]} Rf8 {[%emt 0:00:00]} 20. Rh2 {[%emt 0:08:54]} Rhf6 {[%emt 0:00:00]} 21. Rg5 {[%emt 0:05:29]} Qh6 {[%emt 0:01:30]} 22. e4 {[%emt 0:01:24]} e5 {[%emt 0:00:00]} 23. d5 {[%emt 0:03:20]} Ne7 {[%emt 0:00:00]} 24. Rxe5 {[%emt 0:01:18]} Ng6 {[%emt 0:00:00]} 25. Rg5 {[%emt 0:07:10]} d6 {[%emt 0:00:00]} 26. e5 {[%emt 0:38:19]} Nxe5 {[%emt 0:02:30]} 27. Be4 {[%emt 0:00:00]} Nf7 {[%emt 0:00:00]} 28. Rg4 {[%emt 0:00:00]} Qh5 {[%emt 0:01:00]} 29. Qf1 {[%emt 0:00:00]} Qe5 {[%emt 0:00:00]} 30. Rhg2 {[%emt 0:00:00]} Rh6 {[%emt 0:00:00]} 31. Kg1 {[%emt 0:00:00]} Qf6 {[%emt 0:00:00]} 32. Qb1 {[%emt 0:00:00]} Ne5 {[%emt 0:00:00]} 33. Rxg7 {[%emt 0:00:00]} Qxh4 {[%emt 0:00:00]} 34. Kf1 {[%emt 0:00:00]} Qh3 {[%emt 0:00:00]} 35. Ke2 {[%emt 0:00:00]} Ng6 {[%emt 0:00:00]} 36. R2xg6 {[%emt 0:00:00]} Rxg6 {[%emt 0:00:00]} 37. Rxc7 {[%emt 0:00:00]} Rg7 {[%emt 0:00:00]} 38. Rc6 {[%emt 0:00:00]} Qh4 {[%emt 0:05:00]} 39. Rxd6 {[%emt 0:00:00]} Rg2 {[%emt 0:00:00]} 40. Qe1 {[%emt 0:00:00]} Re8 {[%emt 0:00:00]} 41. Qf1 {[%emt 0:00:00]} Rxe4+ {[%emt 0:00:00]} 42. fxe4 {[%emt 0:00:00]} Qg4+ {[%emt 0:00:00]} 43. Kd2 {[%emt 0:01:33]} Qf3 {[%emt 0:00:00]} 44. Kc1 {[%emt 0:00:11]} Rxf2 {[%emt 0:00:00]} 45. Rd8+ {[%emt 0:00:06]} Kg7 {[%emt 0:00:00]} 46. Qg1+ {[%emt 0:00:04]} Kh6 {[%emt 0:00:00]} 47. Rd6+ {[%emt 0:00:38]} Kh5 {[%emt 0:00:00]} 0-1

[Event "XVI Memorial Lezcano Montalvo 2024"]
[Site "Gran Canaria"]
[Date "2024.03.25"]
[Round "3.13"]
[White "Gonzalez Martinez, Miguel Angel"]
[Black "Omelja, Artem"]
[Result "0-1"]
[ECO "C01"]
[WhiteElo "2158"]
[BlackElo "2438"]
[Annotator "TA"]
[PlyCount "76"]
[EventDate "2024.03.23"]
[EventType "swiss"]
[EventCountry "ESP"]
[SourceTitle "playchess.com"]
[Source "ChessBase"]
[SourceQuality "1"]
[TimeControl "5400+30"]

{[%evp 16,76,16,11,27,27,59,33,29,20,27,33,33,41,37,19,28,17,60,56,60,52,61,50,71,66,81,69,84,79,75,16,8,-20,0,0,0,0,0,0,0,0,16,0,0,-54,-13,-8,-8,-9,-9,-58,-62,-350,-361,-525,-512,-519,-525,-509,-502,-6427,-6295]} 1. e4 {[%emt 0:05:45]} e6 {[%emt 0:00:08]} 2. d4 {[%emt 0:01:05]} d5 {[%emt 0:00:09]} 3. exd5 {[%emt 0:00:06]} exd5 {[%emt 0:00:10]} 4. Nf3 {[%emt 0:00:07]} Nc6 {[%emt 0:00:16]} 5. c3 {[%emt 0:00:14]} Bd6 {[%emt 0:00:18]} 6. Bd3 {[%emt 0:00:07]} Nge7 {[%emt 0:00:27]} 7. Qc2 {[%emt 0:01:45]} Bg4 {[%emt 0:01:50]} 8. Nbd2 {[%emt 0:01:23]} Qd7 {[%emt 0:01:00]} 9. O-O {[%emt 0:01:37]} O-O-O {[%emt 1:30:42]} 10. b4 {[%emt 0:00:42][%cal Bb2b4,Bb4b5][%mdl 32]} Kb8 {[%emt 0:00:00]} 11. b5 {[%emt 0:02:42]} (11. Bxh7 $2 g6 12. b5 Na5 $19 (12... Rxh7 13. bxc6 Nxc6 14. h4 $17)) 11... Na5 {[%emt 0:00:00] Weiß steht etwas besser.} 12. Ne5 {[%emt 0:04:21] Pariert Ng6.} (12. Bxh7 g6 (12... Qxb5 13. Bd3 $15) 13. Qa4 b6 $19) 12... Bxe5 {[%emt 0:00:00]} 13. dxe5 {[%emt 0:00:03][%cal Oc2a4]} Bf5 {[%emt 0:00:00]} 14. Ba3 {[%emt 0:02:06]} Bg6 {[%emt 0:00:00][%cal Oa5c4]} 15. Rfe1 $36 {[%emt 0:09:54][%mdl 2048] Schwarz steht unter Druck.} (15. Rad1 {vereinfacht} Qe6 16. Rfe1 Rhe8 17. Bxe7 Rxe7 18. Bxg6 hxg6 19. Qa4) 15... Nc4 {[%emt 0:00:00]} 16. Bc5 {[%emt 0:08:51]} (16. Nxc4 dxc4 17. Be4 Nd5 18. Bxg6 hxg6 $17) 16... Rhe8 {[%emt 0:00:00]} 17. Nxc4 {[%emt 0:10:23]} dxc4 {[%emt 0:00:00] [#] Schwarz hat schwache schwarze Felder} 18. Qa4 $1 {[%emt 0:01:01]} b6 $1 {[%emt 0:00:00]} (18... cxd3 19. Qxa7+ Kc8 20. Qa8#) 19. Bxe7 {[%emt 0:01:19]} (19. Qxc4 $2 Bxd3 (19... Qxd3 $2 20. Qxd3 Rxd3 21. Bd4 $19) 20. Qb3 bxc5 $19) 19... cxd3 {[%emt 0:00:00]} 20. Bxd8 {[%emt 0:02:38]} Rxd8 {[%emt 0:00:00][%cal Be8d8,Bd8d5,Bd5c5,Bc5c4,Bc4f4,Bf4f5][%mdl 32]} 21. Rad1 {[%emt 0:03:15]} Qe6 {[%emt 0:00:00] Lässt Qc4 nicht zu} 22. Rd2 {[%emt 0:04:43]} Rd5 {[%emt 0:00:00]} 23. f4 {[%emt 0:01:38]} (23. Qc4 $16) 23... Rc5 $11 {[%emt 0:07:00]} 24. Qd4 {[%emt 0:08:46]} Rc4 {[%emt 0:00:00]} 25. Qd8+ {[%emt 0:00:04]} Kb7 {[%emt 0:00:00]} 26. Rxd3 {[%emt 0:03:39]} Bxd3 {[%emt 0:00:00]} 27. Qxd3 {[%emt 0:00:02]} Rxf4 {[%emt 0:00:00][%mdl 4096] Endspiel. KQR-KQR} 28. g3 {[%emt 0:04:57]} Qc4 {[%emt 0:00:00]} 29. Qe3 {[%emt 0:08:13]} (29. Qxc4 {vereinfacht} Rxc4 30. Rf1 f6 31. exf6 gxf6 32. Rxf6 Rxc3 33. Rh6) 29... Rf5 {[%emt 0:00:00]} 30. Rd1 {[%emt 0:01:08]} (30. Qd4 $11 Qxd4+ (30... Qxb5 $2 31. Qe4+ Kb8 32. Qxf5 $18) 31. cxd4) 30... f6 {[%emt 0:00:00]} (30... Qxb5 $2 31. Qe4+ Ka6 32. Qxf5 $18) 31. e6 $1 {[%emt 0:04:12]} Qxb5 {[%emt 0:00:00] [#] ...Qc6 ist eine echte Drohung.} (31... Qxa2 32. Qe4+) 32. Qe4+ {[%emt 0:01:27]} Ka6 {[%emt 0:00:00] ...Re5 wäre nun fies.} 33. c4 {[%emt 0:01:58]} (33. a4 $11 Qc5+ 34. Qd4 (34. Rd4 $2 Re5 $19)) 33... Qc5+ $15 {[%emt 0:00:00]} 34. Kh1 $2 {[%emt 0:00:01][%mdl 8192] Danach ist Weiß chancenlos.} ({Der einzige Zug:} 34. Qd4 $1 $15 Qxd4+ 35. Rxd4) 34... Re5 $19 {[%emt 0:00:00]} 35. Qa8 {[%emt 0:05:45]} (35. Qc2 $142) 35... Qxc4 {[%emt 0:00:00] Schwarz steht klar auf Gewinn.} 36. Qc8+ {[%emt 0:00:12]} Ka5 {[%emt 0:00:00]} 37. Qd7 {[%emt 0:00:23] Verhindert Qc6+} Rxe6 {[%emt 0:00:00] Und ...Re2 würde nun gewinnen.} (37... Qxa2 38. Qxc7 Qxe6 39. Qxa7+ Kb4 40. Rb1+ Kc5 41. Rc1+ Kb4 42. Rb1+ Kc5 43. Qa3+ Kc6 44. Qa8+ Kd7 (44... Kc5 45. Rc1+ Kb5 46. Rb1+ Kc5 47. Rc1+ Kb4 48. Rb1+ Kc5 $11) 45. Qb7+ Ke8 46. Qxb6 $15) 38. Rd5+ {[%emt 0:00:13]} (38. Qd2+ $142 Ka6 39. Rc1 Qe4+ 40. Kg1) 38... b5 {[%emt 0:00:00] Gewichteter Fehlerwert: Weiß=0.49/Schwarz=0.09 (makellos) .  Verlustzug:     	Weiß=1     	---        Fehler:       	Weiß=5     	---        Ungenau:       	Weiß=2     	Schwarz=3     OK:         	Weiß=10    	Schwarz=11    Bester:       	Weiß=3     	Schwarz=6     Stark:        	Weiß=2     	Schwarz=1} 0-1

[Event "XVI Memorial Lezcano Montalvo 2024"]
[Site "Gran Canaria"]
[Date "2024.03.25"]
[Round "3.14"]
[White "Barlov, Dragan"]
[Black "Quiceno Ramirez, Edwin Alejandro"]
[Result "1-0"]
[ECO "B33"]
[WhiteElo "2387"]
[BlackElo "1888"]
[Annotator "RC"]
[PlyCount "119"]
[EventDate "2024.03.23"]
[EventType "swiss"]
[EventCountry "ESP"]
[SourceTitle "playchess.com"]
[Source "ChessBase"]
[SourceQuality "1"]
[TimeControl "5400+30"]

1. e4 {[%emt 0:00:07]} c5 {[%emt 0:01:39]} 2. Nf3 {[%emt 0:00:46]} Nc6 {[%emt 0:00:05]} 3. d4 {[%emt 0:00:58]} cxd4 {[%emt 0:00:10]} 4. Nxd4 {[%emt 0:00:06]} Nf6 {[%emt 0:00:05]} 5. Nc3 {[%emt 0:00:22]} e5 {[%emt 0:00:05]} 6. Ndb5 {[%emt 0:01:34]} d6 {[%emt 0:00:21]} 7. a4 {[%emt 0:01:55]} a6 {[%emt 0:03:30]} 8. Na3 {[%emt 0:00:51]} Bg4 {[%emt 0:00:59]} 9. Be2 {[%emt 0:23:35]} Bxe2 {[%emt 0:02:01]} 10. Qxe2 {[%emt 0:00:17]} d5 {[%emt 0:00:36]} 11. exd5 {[%emt 0:01:11]} Nxd5 {[%emt 0:00:05]} 12. Nxd5 {[%emt 0:00:04]} Qxd5 {[%emt 0:00:19]} 13. O-O {[%emt 0:00:06]} Nd4 {[%emt 0:18:32]} 14. Qd1 {[%emt 0:14:54]} O-O-O {[%emt 0:11:09]} 15. Be3 {[%emt 0:16:29]} f5 {[%emt 0:26:06]} 16. c3 {[%emt 0:04:50]} Nb3 {[%emt 0:02:35]} 17. Qxd5 {[%emt 0:00:26]} Rxd5 {[%emt 0:00:07]} 18. Nc4 {[%emt 0:07:22]} Kc7 {[%emt 0:17:20]} 19. Rad1 {[%emt 0:01:58]} Kc6 {[%emt 0:02:56]} 20. f3 {[%emt 0:07:25]} Bc5 {[%emt 0:01:45]} 21. Bxc5 {[%emt 0:00:46]} Kxc5 {[%emt 0:03:14]} 22. Ne3 {[%emt 0:01:53]} Rxd1 {[%emt 0:02:28]} 23. Rxd1 {[%emt 0:00:15]} f4 {[%emt 0:00:07]} 24. Ng4 {[%emt 0:00:20]} Re8 {[%emt 0:03:44]} 25. Nf2 {[%emt 0:03:38]} Kc6 {[%emt 0:00:57]} 26. Ne4 {[%emt 0:00:27]} Re7 {[%emt 0:01:35]} 27. Rd8 {[%emt 0:09:53]} Rd7 {[%emt 0:00:33]} 28. Rxd7 {[%emt 0:00:55]} Kxd7 {[%emt 0:00:05]} 29. Kf1 {[%emt 0:00:43]} Kc6 {[%emt 0:00:26]} 30. Ke2 {[%emt 0:00:25]} Kd5 {[%emt 0:00:37]} 31. Kd3 {[%emt 0:00:37]} b5 {[%emt 0:00:12]} 32. axb5 {[%emt 0:00:34]} axb5 {[%emt 0:00:01]} 33. Kc2 {[%emt 0:00:27]} Na1+ {[%emt 0:00:19]} 34. Kd3 {[%emt 0:00:46]} Nb3 {[%emt 0:00:09]} 35. h4 {[%emt 0:00:26]} g6 {[%emt 0:00:23]} 36. Nf6+ {[%emt 0:00:11]} Ke6 {[%emt 0:00:45]} 37. Nxh7 {[%emt 0:00:02]} Nc5+ {[%emt 0:00:20]} 38. Kc2 {[%emt 0:00:10]} e4 {[%emt 0:01:38]} 39. Ng5+ {[%emt 0:00:16]} Kf5 {[%emt 0:00:05]} 40. Nxe4 {[%emt 0:00:55]} Nxe4 {[%emt 0:00:03]} 41. fxe4+ {[%emt 0:00:01]} Kxe4 {[%emt 0:00:01]} 42. b4 {[%emt 0:02:34]} Ke3 {[%emt 0:01:48]} 43. c4 {[%emt 0:00:00]} Kf2 {[%emt 0:00:02]} 44. cxb5 {[%emt 0:00:20]} Kxg2 {[%emt 0:00:02]} 45. b6 {[%emt 0:00:01]} f3 {[%emt 0:00:02]} 46. b7 {[%emt 0:00:00]} f2 {[%emt 0:00:05]} 47. b8=Q {[%emt 0:02:09]} f1=Q {[%emt 0:00:03]} 48. Qd6 {[%emt 0:00:00]} Qc4+ {[%emt 0:00:26]} 49. Kb2 {[%emt 0:00:08]} Qe2+ {[%emt 0:03:19]} 50. Kc3 {[%emt 0:00:27]} Qf3+ {[%emt 0:00:18]} 51. Qd3 {[%emt 0:00:36]} Qf6+ {[%emt 0:00:45]} 52. Qd4 {[%emt 0:00:15]} Qf3+ {[%emt 0:00:03]} 53. Kd2 {[%emt 0:00:35]} Kh1 {[%emt 0:01:25]} 54. b5 {[%emt 0:00:21]} g5 {[%emt 0:00:20]} 55. hxg5 {[%emt 0:00:49]} Qg2+ {[%emt 0:00:02]} 56. Kc3 {[%emt 0:00:17]} Qxg5 {[%emt 0:00:52]} 57. Kb4 {[%emt 0:00:45]} Qe7+ {[%emt 0:00:21]} 58. Ka5 {[%emt 0:00:36]} Qa3+ {[%emt 0:00:55]} 59. Kb6 {[%emt 0:00:02]} Qa8 {[%emt 0:00:12]} 60. Kc7 {[%emt 0:00:32]} 1-0

[Event "XVI Memorial Lezcano Montalvo 2024"]
[Site "Gran Canaria"]
[Date "2024.03.25"]
[Round "3.15"]
[White "Sanchez Gonzalez, Diego"]
[Black "Garcia Padron, Jose"]
[Result "0-1"]
[ECO "E44"]
[WhiteElo "1908"]
[BlackElo "2385"]
[Annotator "RC"]
[PlyCount "67"]
[EventDate "2024.03.23"]
[EventType "swiss"]
[EventCountry "ESP"]
[SourceTitle "playchess.com"]
[Source "ChessBase"]
[SourceQuality "1"]
[TimeControl "5400+30"]

1. d4 {[%emt 0:00:30]} Nf6 {[%emt 0:05:14]} 2. c4 {[%emt 0:00:00]} e6 {[%emt 0:00:17]} 3. Nc3 {[%emt 0:00:00]} Bb4 {[%emt 0:00:11]} 4. e3 {[%emt 0:00:00]} b6 {[%emt 0:01:44]} 5. Nge2 {[%emt 0:02:21]} Bb7 {[%emt 0:00:37]} 6. a3 {[%emt 0:00:11]} Bxc3+ {[%emt 0:03:07]} 7. Nxc3 {[%emt 0:00:05]} d5 {[%emt 0:01:03]} 8. cxd5 {[%emt 0:02:26]} exd5 {[%emt 0:02:21]} 9. Bd3 {[%emt 0:02:30]} Nbd7 {[%emt 0:05:22]} 10. b4 {[%emt 0:03:08]} O-O {[%emt 0:07:01]} 11. Qb3 {[%emt 0:08:29]} c6 {[%emt 0:10:28]} 12. O-O {[%emt 0:09:15]} Rb8 {[%emt 0:04:05]} 13. Rd1 {[%emt 0:09:09]} c5 {[%emt 0:10:50]} 14. dxc5 {[%emt 0:01:03]} bxc5 {[%emt 0:01:54]} 15. Bf5 {[%emt 0:00:39]} Bc6 {[%emt 0:06:51]} 16. Bb2 {[%emt 0:06:43]} Nb6 {[%emt 0:05:13]} 17. b5 {[%emt 0:02:36]} Nc4 {[%emt 0:02:01]} 18. Qxc4 {[%emt 0:00:44]} dxc4 {[%emt 0:00:20]} 19. Rxd8 {[%emt 0:00:04]} Rfxd8 {[%emt 0:00:11]} 20. bxc6 {[%emt 0:00:06]} Ne8 {[%emt 0:03:45]} 21. Na4 {[%emt 0:04:21]} Rd5 {[%emt 0:03:27]} 22. e4 {[%emt 0:02:15]} Rd2 {[%emt 0:01:09]} 23. Bc3 {[%emt 0:00:45]} Ra2 {[%emt 0:00:49]} 24. Rd1 {[%emt 0:05:06]} f6 {[%emt 0:03:52]} 25. Be6+ {[%emt 0:03:16]} Kf8 {[%emt 0:00:02]} 26. Nxc5 {[%emt 0:00:10]} Rxa3 {[%emt 0:04:32]} 27. Nd7+ {[%emt 0:10:26]} Ke7 {[%emt 0:00:02]} 28. Nxb8 {[%emt 0:00:05]} Rxc3 {[%emt 0:00:07]} 29. Bg4 {[%emt 0:04:07]} a5 {[%emt 0:06:02]} 30. Kf1 {[%emt 0:01:35]} a4 {[%emt 0:00:32]} 31. Rd7+ {[%emt 0:00:07]} Kf8 {[%emt 0:00:05]} 32. Be6 {[%emt 0:00:14]} a3 {[%emt 0:01:12]} 33. Rf7+ {[%emt 0:00:07]} Kg8 {[%emt 0:00:10]} 34. Rxf6+ {[%emt 0:00:08]} 0-1

[Event "XVI Memorial Lezcano Montalvo 2024"]
[Site "Gran Canaria"]
[Date "2024.03.25"]
[Round "3.16"]
[White "Hernando Rodrigo, Jose Maria"]
[Black "Blanco Garcia Bajo, David"]
[Result "1-0"]
[ECO "C44"]
[WhiteElo "2257"]
[BlackElo "2004"]
[Annotator "RC"]
[PlyCount "71"]
[EventDate "2024.03.23"]
[EventType "swiss"]
[EventCountry "ESP"]
[SourceTitle "playchess.com"]
[Source "ChessBase"]
[SourceQuality "1"]
[TimeControl "5400+30"]

1. e4 {[%emt 0:00:04]} e5 {[%emt 0:01:01]} 2. Nf3 {[%emt 0:00:06]} Nc6 {[%emt 0:00:04]} 3. d4 {[%emt 0:00:15]} exd4 {[%emt 0:00:05]} 4. c3 {[%emt 0:00:04]} dxc3 {[%emt 0:00:07]} 5. Nxc3 {[%emt 0:00:05]} Bb4 {[%emt 0:00:05]} 6. Bc4 {[%emt 0:00:11]} Bxc3+ {[%emt 0:01:08]} 7. bxc3 {[%emt 0:00:08]} d6 {[%emt 0:00:20]} 8. Qb3 {[%emt 0:00:47]} Qd7 {[%emt 0:03:04]} 9. Bd5 {[%emt 0:13:20]} Nf6 {[%emt 0:00:51]} 10. O-O {[%emt 0:01:25]} O-O {[%emt 0:04:09]} 11. c4 {[%emt 0:03:28]} Ne7 {[%emt 0:05:53]} 12. Ng5 {[%emt 0:22:10]} Nexd5 {[%emt 0:07:13]} 13. exd5 {[%emt 0:01:02]} Qf5 {[%emt 0:09:18]} 14. Nf3 {[%emt 0:10:34]} Ne4 {[%emt 0:00:51]} 15. Be3 {[%emt 0:05:06]} Qg6 {[%emt 0:02:16]} 16. Bd4 {[%emt 0:02:27]} b6 {[%emt 0:07:40]} 17. Rfe1 {[%emt 0:01:18]} f5 {[%emt 0:00:25]} 18. Qc2 {[%emt 0:00:50]} Bd7 {[%emt 0:00:23]} 19. Re3 {[%emt 0:03:51]} Rae8 {[%emt 0:01:32]} 20. Nd2 {[%emt 0:09:47]} Nf6 {[%emt 0:03:47]} 21. Rg3 {[%emt 0:03:19]} Qh6 {[%emt 0:03:36]} 22. Rh3 {[%emt 0:05:42]} Qf4 {[%emt 0:00:47]} 23. Qc3 {[%emt 0:14:21]} Re7 {[%emt 0:04:30]} 24. Rg3 {[%emt 0:01:15]} Qh6 {[%emt 0:01:38]} 25. Rh3 {[%emt 0:00:37]} Nh5 {[%emt 0:02:59]} 26. f4 {[%emt 0:00:46]} Nxf4 {[%emt 0:01:26]} 27. Rxh6 {[%emt 0:00:30]} Ne2+ {[%emt 0:00:08]} 28. Kh1 {[%emt 0:00:23]} Nxc3 {[%emt 0:00:08]} 29. Rh3 {[%emt 0:00:26]} Ne4 {[%emt 0:02:28]} 30. Nf1 {[%emt 0:00:17]} f4 {[%emt 0:00:30]} 31. Ra3 {[%emt 0:01:26]} a5 {[%emt 0:00:10]} 32. Kg1 {[%emt 0:00:00]} Ng5 {[%emt 0:00:50]} 33. h4 {[%emt 0:00:00]} Nf7 {[%emt 0:00:47]} 34. Nd2 {[%emt 0:00:04]} Nh6 {[%emt 0:00:35]} 35. Rf3 {[%emt 0:01:12]} Re2 {[%emt 0:00:58]} 36. Bc3 {[%emt 0:00:40]} 1-0